bitfinex/quotes_ETHUSD_20260217
["timestamp","ask_amount","ask_price","bid_price","bid_amount"]
[1771289239071,0.0011,2002.7,2002.4,2.68045428]
[1771289240204,0.0011,2002.5,2002.4,2.68045428]
[1771289240402,0.0011,2002.7,2002.4,2.68045428]
[1771289241401,0.0011,2002.9,2002.6,1.2483771]
[1771289242878,0.0011,2002.9,2002.5,7.71691042]
[1771289243078,0.0011,2002.9,2002.5,0.5]
[1771289243302,0.0011,2002.9,2002.4,0.932]
[1771289243501,0.0011,2002.9,2002.3,0.934]
[1771289244004,0.0011,2002.9,2002.1,0.5]
[1771289244180,0.0011,2002.9,2002.1,1.434]
[1771289245499,1.24929012,2002.9,2002.1,2.6826792]
[1771289245714,1.24929012,2002.9,2002.1,8.65120106]
[1771289247300,1.24929012,2002.9,2002.1,7.40252186]
[1771289247502,0.0011,2002.9,2002.1,6.46852186]
[1771289247698,0.0011,2002.9,2001.9,1.74876344]
[1771289247900,5.96852186,2002.8,2001.9,1.433]
[1771289248495,5.96852186,2002.8,2001.9,0.5]
[1771289249502,1.24831477,2002.7,2001.9,0.5]
[1771289249707,5.96852186,2002.6,2001.6,0.5]
[1771289250016,5.96852186,2002.6,2001.7,0.933]
[1771289250316,6.94052186,2002.6,2001.7,0.933]
[1771289251199,6.94052186,2002.6,2001.7,1.433]
[1771289251403,6.94052186,2002.6,2001.7,7.40152186]
[1771289251915,1.24843945,2002.5,2001.5,8.65155884]
[1771289252116,5.96852186,2002.4,2001.5,0.001]
[1771289252686,5.96852186,2002.4,2002.1,0.001]
[1771289252891,5.96852186,2002.2,2001.5,0.001]
[1771289253092,5.96852186,2002.0,2001.5,0.001]
[1771289253819,1.24881362,2001.9,2001.5,0.001]
[1771289254009,5.96852186,2001.8,2001.6,0.001]
[1771289254210,5.96852186,2001.8,2001.3,0.001]
[1771289256019,1.2489384,2001.7,2001.3,0.001]
[1771289258119,1.24875124,2002.0,2001.3,0.001]
[1771289260626,1.24875124,2002.0,2001.3,0.501]
[1771289261699,1.24875124,2002.0,2001.3,0.001]
[1771289265736,1.24875124,2002.0,2001.5,0.001]
[1771289265909,0.0011,2001.8,2001.5,0.001]
[1771289266294,0.0011,2001.8,2001.3,0.001]
[1771289268528,0.0011,2001.8,2001.3,0.501]
[1771289269331,0.0011,2001.8,2001.5,0.5]
[1771289269747,0.0011,2001.8,2001.3,1.2501417]
[1771289269748,0.972,2002.1,2001.4,0.49945]
[1771289269911,4.99552917,2002.3,2001.4,0.49945]
[1771289269912,1.24867584,2002.2,2001.4,0.49945]
[1771289270516,0.0011,2002.0,2001.3,0.001]
[1771289270919,0.0022,2001.9,2001.3,0.001]
[1771289271114,0.0022,2002.1,2001.3,0.50045]
[1771289271625,0.0011,2002.0,2001.3,0.50045]
[1771289272038,0.0011,2001.9,2001.3,0.50045]
[1771289275364,0.0011,2002.0,2001.3,0.50045]
[1771289275557,0.0011,2001.8,2001.3,0.50045]
[1771289278171,0.0011,2001.8,2001.5,0.001]
[1771289278338,0.0022,2001.8,2001.5,0.001]
[1771289281648,0.0011,2001.7,2001.5,0.001]
[1771289282569,5.96762107,2001.6,2001.3,0.001]
[1771289282960,0.0011,2001.5,2001.3,0.001]
[1771289286159,0.974,2001.7,2001.3,0.50045]
[1771289286365,0.0011,2001.8,2001.3,0.50045]
[1771289286674,0.0011,2002.0,2001.5,0.4989]
[1771289286853,0.0022,2002.0,2001.5,0.4989]
[1771289287254,1.25096251,2002.0,2001.5,0.4989]
[1771289287670,0.0022,2002.0,2001.5,0.4989]
[1771289288043,0.0022,2002.0,2001.6,0.4989]
[1771289290575,0.0011,2001.8,2001.7,0.001]
[1771289292173,0.0011,2001.8,2001.7,0.4999]
[1771289292473,0.0011,2002.3,2001.9,0.49835]
[1771289292646,0.0011,2002.2,2001.9,0.49835]
[1771289293088,0.0011,2002.3,2001.9,0.49835]
[1771289293288,0.0022,2002.3,2001.9,0.49835]
[1771289295192,0.0022,2002.3,2001.9,1.74711316]
[1771289295398,0.0022,2002.3,2001.8,1.24886809]
[1771289295580,0.0022,2002.3,2001.7,1.74825554]
[1771289295879,0.0022,2002.3,2001.7,0.001]
[1771289296080,0.0055,2002.3,2001.7,0.001]
[1771289296704,0.0022,2002.3,2001.7,1.2499361]
[1771289297501,0.0022,2002.3,2001.7,1.7482861]
[1771289297502,0.0011,2002.2,2001.7,1.7482861]
[1771289298100,0.0011,2002.2,2001.7,0.001]
[1771289298275,0.0033,2002.1,2001.7,0.001]
[1771289298975,0.0044,2002.3,2001.7,0.001]
[1771289299174,0.0011,2002.1,2001.7,0.001]
[1771289299371,0.0011,2002.1,2001.7,0.49935]
[1771289299575,0.0011,2002.3,2001.8,0.49835]
[1771289299782,0.0011,2002.3,2001.7,0.001]
[1771289301473,0.0011,2002.3,2001.7,0.49935]
[1771289303380,0.0011,2002.7,2001.8,0.49835]
[1771289303800,0.0011,2002.1,2002.0,0.49835]
[1771289304015,0.0011,2002.3,2002.1,0.49835]
[1771289304185,0.0011,2002.7,2002.0,0.49835]
[1771289304391,0.0011,2002.6,2002.0,0.49835]
[1771289305706,0.0011,2002.6,2002.1,1.24868887]
[1771289306788,0.0011,2002.6,2002.0,1.74705365]
[1771289307683,0.0011,2002.6,2002.1,0.49835]
[1771289310715,0.0011,2002.6,2002.1,1.74702383]
[1771289311815,0.0011,2002.6,2001.9,1.74711313]
[1771289315802,0.0011,2002.6,2001.9,1.74811313]
[1771289316002,0.0011,2002.4,2001.9,1.74811313]
[1771289316512,0.0011,2002.4,2001.9,1.24976313]
[1771289316723,0.0011,2002.4,2002.0,0.49835]
[1771289317825,0.0011,2002.4,2002.0,1.74705031]
[1771289319999,0.0011,2002.6,2002.2,0.49835]
[1771289320724,0.0044,2002.6,2001.9,1.74816362]
[1771289321108,0.0044,2002.6,2002.0,0.49835]
[1771289321318,0.0011,2002.6,2002.0,0.49835]
[1771289322198,0.0011,2002.6,2002.0,1.74703999]
[1771289323123,0.0011,2002.6,2002.1,0.49835]
[1771289325529,0.0011,2002.6,2002.0,1.24868999]
[1771289325828,0.0044,2002.6,2002.0,1.24868999]
[1771289326829,0.0011,2002.6,2002.1,0.49835]
[1771289328213,0.0011,2002.6,2002.2,0.001]
[1771289328507,0.0011,2002.4,2002.2,0.001]
[1771289328908,0.0011,2002.4,2002.2,1.24962651]
[1771289329113,0.0011,2002.4,2002.2,0.001]
[1771289329842,0.0011,2002.4,2002.2,0.49935]
[1771289330143,0.0011,2002.4,2002.2,0.001]
[1771289331431,0.0011,2002.4,2002.2,0.49935]
[1771289331631,0.0011,2002.6,2002.3,0.49835]
[1771289335145,0.0011,2002.6,2002.3,1.74691328]
[1771289335345,0.0011,2002.6,2002.3,7.70655561]
[1771289336136,0.0011,2002.6,2002.3,8.62755561]
[1771289336623,1.83240855,2003.1,2002.4,0.49835]
[1771289336624,1.83236736,2003.1,2002.4,0.49835]
[1771289337034,1.82906736,2003.1,2002.4,0.49835]
[1771289337361,4.99190733,2003.3,2002.6,0.49835]
[1771289337362,1.24798256,2003.3,2002.6,0.49835]
[1771289337510,1.24798256,2003.3,2002.5,5.95964233]
[1771289337511,4.99443434,2003.6,2002.8,0.49835]
[1771289337711,0.0033,2003.5,2002.8,0.49835]
[1771289338052,0.0033,2003.5,2002.9,1.24819012]
[1771289338213,0.0033,2004.2,2003.0,0.49835]
[1771289338411,0.0033,2004.2,2003.2,0.49835]
[1771289338926,0.0033,2004.8,2003.6,0.49835]
[1771289339135,0.0033,2004.8,2003.7,0.922]
[1771289339332,0.953,2005.2,2003.7,0.922]
[1771289339333,0.9,2005.3,2004.1,0.49835]
[1771289339511,1.24674939,2005.3,2004.3,0.49835]
[1771289339924,1.25004939,2005.3,2004.3,0.49835]
[1771289340246,0.0033,2005.2,2004.1,1.74574129]
[1771289340419,0.0033,2005.2,2004.2,0.512]
[1771289341445,0.0033,2005.2,2004.2,1.01035]
[1771289341827,0.0011,2005.1,2004.2,1.01035]
[1771289342161,0.0044,2005.1,2004.2,0.49835]
[1771289342373,0.0033,2005.0,2003.7,0.49835]
[1771289343648,0.0033,2005.0,2003.6,1.74610404]
[1771289343845,0.0033,2005.0,2003.7,0.49835]
[1771289344049,0.0033,2005.0,2003.9,0.49835]
[1771289344521,0.0011,2005.1,2004.1,0.49835]
[1771289346224,0.0044,2005.1,2004.1,0.49835]
[1771289346420,0.0011,2005.1,2004.3,0.49835]
[1771289349243,0.0011,2005.1,2004.5,0.49835]
[1771289350354,1.21102027,2005.6,2004.8,6.81724924]
[1771289350557,7.72329354,2008.7,2006.0,0.4978]
[1771289350762,5.17781506,2008.8,2007.4,2.3866]
[1771289350763,0.0044,2008.4,2007.4,2.3866]
[1771289350932,0.0044,2008.4,2006.8,0.4978]
[1771289350933,0.69904801,2008.6,2007.1,1.64644379]
[1771289351126,0.69904801,2008.6,2007.1,0.485]
[1771289351331,0.69904801,2008.6,2006.6,0.899]
[1771289351332,9.913362,2008.3,2006.6,0.899]
[1771289351558,7.71889354,2007.6,2006.1,0.76057411]
[1771289351756,7.71889354,2007.2,2006.1,0.26057411]
[1771289352056,1.862,2007.5,2006.1,1.50677156]
[1771289352230,0.003,2007.3,2006.1,0.26057411]
[1771289353238,1.24564025,2007.0,2006.1,0.26057411]
[1771289353638,0.003,2006.9,2006.1,0.26057411]
[1771289354342,0.003,2006.9,2006.1,1.50674784]
[1771289354661,0.003,2006.9,2006.1,2.00674784]
[1771289355157,1.24545409,2007.3,2006.3,0.5]
[1771289355330,1.24539204,2007.4,2006.4,1.74601275]
[1771289355537,1.24839204,2007.4,2006.4,1.74601275]
[1771289355963,1.24839204,2007.4,2006.2,1.24609282]
[1771289356137,1.24839204,2007.4,2006.1,2.17715553]
[1771289356456,1.24839204,2007.4,2006.1,2.17815553]
[1771289356841,1.24839204,2007.4,2006.1,2.67815553]
[1771289357162,1.24839204,2007.4,2006.2,0.5]
[1771289357354,1.24539204,2007.4,2006.3,1.74607486]
[1771289357550,0.003,2007.3,2006.2,1.24609064]
[1771289357951,0.003,2007.3,2005.9,1.74627849]
[1771289358152,0.003,2007.3,2005.9,1.24627849]
[1771289358366,0.003,2007.3,2006.0,0.5]
[1771289358937,1.24539204,2007.4,2006.0,0.5]
[1771289359139,0.003,2007.3,2006.0,0.5]
[1771289359465,0.003,2007.3,2006.1,1.24619909]
[1771289360565,0.003,2007.3,2006.1,1.74619909]
[1771289361255,0.003,2007.3,2006.0,2.17825293]
[1771289361668,0.003,2007.3,2006.0,0.932]
[1771289361965,7.71889354,2006.9,2005.0,0.5]
[1771289362279,1.864,2006.8,2005.3,0.5]
[1771289362569,1.861,2006.8,2005.3,0.5]
[1771289362777,0.003,2006.7,2005.4,0.933]
[1771289363472,1.24882648,2006.7,2005.6,0.5]
[1771289365079,1.24882648,2006.7,2005.6,1.432]
[1771289365372,1.24582648,2006.7,2005.6,1.432]
[1771289365677,1.24582648,2006.7,2005.7,1.24644762]
[1771289366180,0.003,2006.6,2005.9,0.5]
[1771289367656,0.003,2006.6,2006.0,1.74626121]
[1771289367857,0.003,2006.6,2006.1,0.5]
[1771289370099,0.003,2006.6,2006.1,1.7461659]
[1771289371062,0.003,2006.6,2006.1,2.6771659]
[1771289371672,0.003,2006.5,2006.1,2.6771659]
[1771289371854,4.98256103,2007.2,2006.1,2.6771659]
[1771289372060,0.003,2007.1,2006.1,1.431]
[1771289372254,0.003,2007.1,2006.0,2.1772234]
[1771289372462,0.003,2007.1,2006.0,0.931]
[1771289372787,0.003,2007.1,2005.9,0.931]
[1771289373784,0.003,2007.1,2006.2,0.5]
[1771289373989,0.0011,2007.4,2006.3,7.92892624]
[1771289374196,0.0011,2008.4,2006.5,1.24595066]
[1771289374197,8.335256,2008.2,2006.5,1.24595066]
[1771289374381,0.404,2008.2,2006.8,0.5]
[1771289374694,7.71889354,2008.1,2006.5,1.74595066]
[1771289374900,7.71889354,2008.1,2006.4,1.74596357]
[1771289375194,0.404,2008.2,2006.7,0.5]
[1771289375366,0.404,2008.2,2006.9,0.5]
[1771289375974,0.404,2008.2,2007.2,0.5]
[1771289376177,1.24483393,2008.3,2007.2,0.5]
[1771289376385,4.98043575,2008.4,2007.1,1.24551962]
[1771289376386,0.0011,2008.4,2007.1,1.24551962]
[1771289376592,0.0011,2008.4,2006.9,1.74568837]
[1771289376593,7.71999354,2008.4,2006.9,1.74568837]
[1771289376769,7.71999354,2008.4,2006.9,1.74569938]
[1771289377104,7.71889354,2008.1,2006.4,0.5]
[1771289377262,0.963,2008.0,2006.4,0.5]
[1771289377466,0.898,2007.9,2006.4,0.5]
[1771289378100,7.71889354,2007.8,2006.2,0.5]
[1771289378400,1.24520595,2007.7,2006.3,1.74607486]
[1771289378792,1.24520595,2007.7,2006.3,0.5]
[1771289379974,1.24520595,2007.7,2006.5,0.5]
[1771289380568,4.98082382,2007.8,2006.7,0.5]
[1771289380767,12.69971736,2007.8,2006.4,2.14400706]
[1771289381386,12.69971736,2007.8,2006.4,2.64400706]
[1771289381994,12.69971736,2007.8,2006.4,1.398]
[1771289382294,12.69971736,2007.8,2006.4,0.5]
[1771289382696,12.69971736,2007.8,2006.4,1.74601058]
[1771289383705,0.0011,2007.6,2006.4,1.74601058]
[1771289386108,7.71889354,2007.5,2006.0,0.5]
[1771289386416,0.95417355,2007.4,2006.0,0.5]
[1771289386799,1.24545409,2007.3,2006.0,1.74624972]
[1771289386999,0.898,2007.2,2006.0,0.5]
[1771289387191,8.61689354,2007.2,2005.7,1.74638911]
[1771289387392,8.61689354,2007.2,2005.7,1.74643733]
[1771289388010,8.61689354,2007.2,2005.7,1.7464413]
[1771289388511,8.61689354,2007.2,2005.8,0.5]
[1771289388512,0.898,2007.2,2005.8,0.5]
[1771289388890,1.24557819,2007.1,2006.0,0.5]
[1771289389200,2.14355711,2007.2,2006.3,0.5]
[1771289389405,0.898,2007.2,2006.3,0.5]
[1771289390016,5.93583196,2007.4,2006.3,0.5]
[1771289390017,2.19962018,2007.4,2006.3,0.5]
[1771289390507,2.19958701,2007.4,2006.3,0.5]
[1771289390920,0.0011,2007.6,2006.5,0.5]
[1771289391503,0.0011,2007.6,2006.6,0.5]
[1771289391810,0.0011,2007.6,2006.7,1.431]
[1771289392001,0.0011,2007.6,2006.8,0.5]
[1771289392214,0.0011,2007.6,2006.9,0.5]
[1771289392813,0.0011,2007.6,2006.6,0.5]
[1771289393310,0.0011,2007.6,2006.6,1.7458801]
[1771289393520,0.0011,2007.6,2006.7,0.5]
[1771289393913,0.0011,2007.6,2006.5,1.24590545]
[1771289394295,0.0011,2007.6,2006.5,1.74590545]
[1771289394697,0.0011,2007.6,2006.5,0.5]
[1771289394890,0.0011,2007.6,2006.3,1.24603007]
[1771289395211,0.0011,2007.6,2006.3,1.74603007]
[1771289395925,0.0011,2007.6,2006.1,1.24614273]
[1771289396492,0.0011,2007.6,2006.2,0.5]
[1771289397115,0.0011,2007.6,2006.4,0.5]
[1771289397926,0.0011,2007.6,2006.8,0.5]
[1771289399124,0.0011,2007.8,2007.6,0.0075081]
[1771289400117,0.0011,2007.8,2007.1,1.245528]
[1771289400323,0.0011,2007.8,2007.0,0.5]
[1771289400895,0.0011,2007.8,2007.0,1.74563869]
[1771289401095,0.0011,2007.8,2007.1,0.5]
[1771289401394,1.24477195,2008.4,2007.3,0.5]
[1771289401593,1.24477195,2008.4,2007.0,3.84]
[1771289401819,17.234906,2008.3,2006.7,0.5]
[1771289402020,16.865736,2008.3,2006.7,1.74582367]
[1771289402221,16.865736,2008.3,2006.7,0.5]
[1771289402400,8.33372455,2008.0,2006.4,1.74600586]
[1771289402603,0.898,2007.9,2006.4,1.74600586]
[1771289402919,0.961,2007.8,2006.4,1.74600586]
[1771289403128,0.961,2007.8,2006.4,0.5]
[1771289403303,1.24520595,2007.7,2006.4,1.246007]
[1771289403507,1.24520595,2007.7,2006.5,0.5]
[1771289405003,1.24520595,2007.7,2006.3,1.2470646]
[1771289405326,1.24520595,2007.7,2006.3,0.001]
[1771289405620,9.5789305,2007.7,2006.3,0.001]
[1771289406196,1.24520595,2007.7,2006.3,0.501]
[1771289407496,1.24520595,2007.7,2006.5,0.5]
[1771289410995,9.5789305,2007.7,2006.3,0.001]
[1771289411195,1.24520595,2007.7,2006.4,0.5]
[1771289412425,4.98082382,2007.8,2006.6,0.5]
[1771289412824,0.0011,2007.6,2006.6,0.5]
[1771289414821,0.0011,2007.6,2006.5,0.001]
[1771289415129,0.0011,2007.6,2006.5,1.24693858]
[1771289415523,0.0011,2007.6,2006.5,0.001]
[1771289416029,0.0011,2007.6,2006.6,0.5]
[1771289417931,0.0011,2007.6,2006.5,0.001]
[1771289418532,8.33372455,2007.5,2006.5,0.001]
[1771289418730,1.24545409,2007.3,2006.5,0.001]
[1771289419032,2.20345409,2007.3,2006.5,0.001]
[1771289421619,10.53717864,2007.3,2006.5,0.001]
[1771289422231,10.53717864,2007.3,2006.0,0.001]
[1771289423141,26.782653,2007.2,2006.0,0.001]
[1771289423326,0.1024,2007.2,2006.0,0.001]
[1771289423519,8.33372455,2007.0,2006.0,0.001]
[1771289423723,0.1024,2007.2,2006.0,0.001]
[1771289423922,0.898,2007.2,2006.0,0.501]
[1771289424140,0.957,2007.1,2006.0,0.501]
[1771289425849,1.24564025,2007.0,2006.3,0.5]
[1771289426019,1.24564025,2007.0,2006.2,0.001]
[1771289427228,8.33372455,2006.9,2006.0,0.001]
[1771289427524,1.24564025,2007.0,2006.0,0.001]
[1771289427727,1.24564025,2007.0,2006.0,0.501]
[1771289427931,1.24564025,2007.0,2006.1,0.5]
[1771289430122,1.24564025,2007.0,2006.0,0.001]
[1771289430123,8.33372455,2006.8,2006.0,0.001]
[1771289431928,1.24582648,2006.7,2006.0,0.001]
[1771289432251,0.958,2006.6,2006.0,0.001]
[1771289433033,0.958,2006.6,2006.0,0.501]
[1771289434252,1.24595066,2006.5,2005.8,0.001]
[1771289436258,1.24595066,2006.5,2005.8,0.501]
[1771289438238,2.20393962,2006.6,2005.9,0.5]
[1771289438946,0.958,2006.6,2005.9,0.5]
[1771289439434,2.20390009,2006.6,2006.1,0.5]
[1771289439837,1.24590009,2006.6,2006.1,0.5]
[1771289442341,0.958,2006.7,2006.2,0.5]
[1771289443042,0.898,2007.0,2006.3,0.5]
[1771289444567,0.898,2007.0,2006.5,0.5]
[1771289445541,0.9581,2007.1,2006.5,0.5]
[1771289445542,0.0011,2007.1,2006.5,0.5]
[1771289446541,0.0011,2007.1,2006.6,1.24588856]
[1771289446748,0.0011,2007.1,2006.7,0.5]
[1771289447949,0.0011,2007.3,2006.7,0.5]
[1771289448969,0.0011,2007.3,2006.8,1.2457644]
[1771289449264,0.898,2007.7,2007.0,0.5]
[1771289449470,2.14321211,2007.7,2007.0,0.5]
[1771289449846,0.898,2007.7,2007.0,0.5]
[1771289451340,0.956,2007.9,2007.2,0.5]
[1771289451965,2.14292183,2008.2,2007.2,0.5]
[1771289452165,2.14292183,2008.2,2007.1,1.24557819]
[1771289452166,2.14290149,2008.2,2007.4,0.5]
[1771289453047,2.14290149,2008.2,2007.1,0.5]
[1771289453481,19.665354,2008.1,2007.1,0.5]
[1771289453644,0.0011,2007.3,2007.1,0.5]
[1771289454878,0.0011,2007.6,2007.2,0.5]
[1771289456176,0.0011,2007.6,2006.9,0.5]
[1771289456354,0.0011,2007.6,2006.7,1.24578961]
[1771289456355,0.0011,2007.6,2006.6,0.5]
[1771289456976,0.898,2007.5,2006.6,0.5]
[1771289457654,1.24539204,2007.4,2006.6,0.5]
[1771289458062,1.24539204,2007.4,2006.7,0.5]
[1771289458264,2.14336362,2007.5,2006.7,0.5]
[1771289460464,2.14336362,2007.5,2006.4,0.5]
[1771289460874,0.898,2007.5,2006.6,0.5]
[1771289461865,2.14333255,2007.5,2006.8,0.5]
[1771289462066,2.14333255,2007.5,2006.5,0.5]
[1771289462588,2.14333255,2007.5,2006.2,0.5]
[1771289462886,1.24533255,2007.5,2006.6,0.5]
[1771289463089,2.19433255,2007.5,2006.6,0.5]
[1771289465094,2.19433255,2007.5,2006.3,0.5]
[1771289465290,6.922454,2007.4,2006.3,0.5]
[1771289465473,6.922454,2007.4,2006.8,0.001]
[1771289466074,1.24545409,2007.3,2006.8,0.001]
[1771289466279,1.24545409,2007.3,2006.5,0.001]
[1771289470305,13.460149,2007.2,2006.5,0.001]
[1771289471024,13.460149,2007.2,2006.3,0.001]
[1771289471025,0.1024,2007.1,2006.3,0.001]
[1771289471238,14.751958,2007.0,2006.3,0.001]
[1771289471497,0.898,2006.9,2006.3,0.001]
[1771289471710,0.898,2006.9,2006.0,0.001]
[1771289472082,1.2457644,2006.8,2006.0,0.501]
[1771289473219,0.45924467,2006.6,2005.8,0.001]
[1771289473433,1.40724467,2006.5,2005.8,0.001]
[1771289473724,0.948,2006.5,2005.8,0.001]
[1771289474196,1.24601275,2006.4,2005.8,0.001]
[1771289477297,2.19400033,2006.5,2005.8,0.46883322]
[1771289478551,2.19400033,2006.5,2005.8,1.71521624]
[1771289478830,2.19400033,2006.5,2005.8,0.46883322]
[1771289479526,2.19400033,2006.5,2005.8,1.71521239]
[1771289479831,2.19400033,2006.5,2005.8,0.001]
[1771289480430,2.19400033,2006.5,2006.0,0.001]
[1771289488041,2.16216511,2006.5,2006.0,0.001]
[1771289489916,2.16216511,2006.5,2006.0,0.46883322]
[1771289493444,2.16216511,2006.5,2006.2,0.001]
[1771289493647,0.0011,2006.3,2006.0,1.71508149]
[1771289493942,0.0011,2006.3,2006.0,0.46883322]
[1771289494544,0.0011,2006.3,2006.0,1.71507772]
[1771289494743,0.0011,2006.3,2006.1,0.46783322]
[1771289494941,0.0011,2006.3,2006.0,0.001]
[1771289497720,0.0011,2006.3,2006.0,0.46883322]
[1771289499746,0.0011,2006.3,2006.1,1.24619909]
[1771289499936,0.0011,2006.3,2006.2,0.46783322]
[1771289501851,0.91726478,2006.5,2006.2,0.46783322]
[1771289502155,0.91726478,2006.5,2006.2,1.71394909]
[1771289502336,2.16322087,2006.5,2006.0,0.001]
[1771289502741,0.0011,2006.5,2006.1,0.46783322]
[1771289502932,1.24705172,2006.5,2006.1,0.46783322]
[1771289503327,0.0011,2006.5,2006.1,0.46783322]
[1771289503638,0.0011,2006.5,2006.0,0.001]
[1771289503639,1.24705362,2006.5,2006.0,0.001]
[1771289504241,0.94,2006.4,2006.0,0.001]
[1771289505151,0.94,2006.4,2005.8,0.001]
[1771289505852,0.94,2006.4,2005.8,0.46612801]
[1771289506846,1.24607486,2006.3,2005.8,0.46612801]
[1771289507327,1.24607486,2006.3,2006.2,0.001]
[1771289507528,1.24607486,2006.3,2005.8,0.46612801]
[1771289508131,0.0011,2006.2,2005.8,0.46612801]
[1771289508327,0.0011,2006.2,2005.9,0.46512801]
[1771289508658,0.0011,2006.2,2006.0,0.001]
[1771289515059,0.0011,2006.2,2005.7,0.0003981]
[1771289522066,2.14523697,2006.2,2005.7,0.0003981]
[1771289522280,2.14523697,2006.2,2005.9,0.001]
[1771289522569,0.0011,2006.0,2005.9,0.001]
[1771289523596,0.9381,2006.0,2005.9,0.001]
[1771289525177,0.9381,2006.0,2005.7,0.00018579]
[1771289528492,2.18436868,2006.0,2005.7,0.00018579]
[1771289528655,6.42792254,2005.9,2005.5,0.001]
[1771289528975,0.9381,2006.0,2005.6,0.47456618]
[1771289529175,0.8991,2006.2,2005.8,0.47456618]
[1771289529176,0.0011,2006.2,2005.8,0.47456618]
[1771289529477,0.9411,2006.2,2005.8,0.47456618]
[1771289530472,0.9411,2006.2,2005.9,1.72088952]
[1771289531476,0.9411,2006.2,2006.0,0.47456618]
[1771289533986,0.9411,2006.2,2006.0,1.72081935]
[1771289534583,0.0011,2006.5,2006.2,0.45647674]
[1771289534791,0.0022,2006.5,2006.3,0.45647674]
[1771289535199,0.0011,2006.5,2006.3,0.45647674]
[1771289535594,1.2470513,2006.5,2005.9,0.45747674]
[1771289535791,0.0011,2006.4,2005.9,0.45747674]
[1771289536007,0.48874166,2006.2,2005.7,0.001]
[1771289536216,0.48874166,2006.2,2005.5,0.001]
[1771289538006,1.24619909,2006.1,2005.5,0.001]
[1771289538188,0.48764166,2006.0,2005.5,0.001]
[1771289538388,0.939,2005.9,2005.5,0.001]
[1771289538808,2.84376407,2005.8,2005.4,9.705e-05]
[1771289538982,2.84376407,2005.7,2005.4,9.705e-05]
[1771289539184,2.84376407,2005.6,2005.4,9.705e-05]
[1771289539384,2.84376407,2005.5,2005.4,9.705e-05]
[1771289539610,0.939,2005.9,2005.4,0.45657379]
[1771289540820,0.939,2005.9,2005.5,0.45647674]
[1771289542522,1.24620964,2006.1,2005.5,0.45647674]
[1771289542721,1.24723697,2006.2,2005.5,1.7030186]
[1771289543091,1.24723697,2006.2,2005.6,0.45647674]
[1771289543897,0.0011,2006.2,2005.6,0.45647674]
[1771289544615,0.48874166,2006.2,2005.4,9.705e-05]
[1771289544799,1.24619909,2006.1,2005.4,9.705e-05]
[1771289546724,1.24619909,2006.1,2005.4,0.45657379]
[1771289548219,1.24619909,2006.1,2005.6,0.001]
[1771289548425,0.0011,2005.9,2005.4,0.45657379]
[1771289548626,0.936,2005.8,2005.4,0.45657379]
[1771289549498,2.18240775,2005.8,2005.4,0.45657379]
[1771289549700,2.18240775,2005.8,2005.4,9.705e-05]
[1771289552029,0.48764166,2005.6,2005.1,0.001]
[1771289552629,0.898,2005.7,2005.1,1.2478063]
[1771289552822,0.898,2005.7,2005.1,0.001]
[1771289553432,0.898,2005.7,2005.1,1.24781631]
[1771289553931,0.898,2005.7,2005.1,0.45747674]
[1771289554629,0.20154239,2005.7,2005.1,0.001]
[1771289554817,0.20154239,2005.7,2005.2,0.45647674]
[1771289555928,0.20154239,2005.7,2005.4,0.45647674]
[1771289556634,0.0011,2005.9,2005.4,0.45647674]
[1771289558224,0.0011,2005.9,2005.6,0.45647674]
[1771289560429,0.0011,2005.9,2005.8,0.45647674]
[1771289561321,0.898,2006.3,2005.8,0.45647674]
[1771289562836,0.898,2006.3,2006.0,0.45647674]
[1771289563729,2.14408895,2006.3,2005.7,1.70289252]
[1771289565141,0.898,2006.3,2005.7,1.70289252]
[1771289565437,0.898,2006.3,2005.8,0.45346224]
[1771289565611,0.898,2006.3,2005.7,1.24641578]
[1771289566241,0.898,2006.3,2005.7,1.69987802]
[1771289566544,4.98406047,2006.4,2005.7,1.69987802]
[1771289566742,1.24601275,2006.4,2005.7,1.69987802]
[1771289567121,2.83182562,2006.3,2005.6,0.001]
[1771289567328,2.83182562,2006.2,2005.6,0.001]
[1771289567524,2.83182562,2006.1,2005.6,0.001]
[1771289567731,2.83182562,2006.0,2005.6,0.001]
[1771289568047,2.83182562,2005.9,2005.6,1.24750233]
[1771289568220,2.7973702,2005.8,2005.6,0.001]
[1771289568421,0.48558173,2006.2,2005.6,1.24750259]
[1771289568655,1.73159448,2006.4,2005.6,1.24750259]
[1771289568845,2.179097,2006.5,2005.7,0.46791509]
[1771289569147,2.179097,2006.5,2005.8,1.24638548]
[1771289569550,2.1790629,2006.5,2005.8,1.71430057]
[1771289570049,2.63557305,2006.5,2005.7,1.71431745]
[1771289570954,2.63557305,2006.5,2005.7,1.68151745]
[1771289571842,2.63557305,2006.5,2005.7,1.65751745]
[1771289572747,0.0011,2006.2,2005.7,1.65751745]
[1771289573058,0.0011,2006.2,2005.7,1.71436215]
[1771289573255,0.45761015,2006.2,2005.6,0.001]
[1771289573754,0.0011,2006.2,2005.6,0.46891509]
[1771289574046,1.24724465,2006.2,2005.6,0.001]
[1771289574933,1.7037548,2006.2,2005.6,0.001]
[1771289575253,1.24724465,2006.2,2005.6,0.001]
[1771289575455,1.7037548,2006.2,2005.6,0.001]
[1771289575952,1.24724465,2006.2,2005.6,0.001]
[1771289576167,1.7037548,2006.2,2005.6,0.001]
[1771289582642,0.45651015,2006.1,2005.4,0.001]
[1771289582847,0.45651015,2005.9,2005.4,0.00016483]
[1771289583063,1.70289563,2005.8,2005.4,0.00016483]
[1771289583874,0.45651015,2005.7,2005.4,0.00016483]